bitfinex-derivatives/quotes_ETHF0:USTF0_20251211
["timestamp","ask_amount","ask_price","bid_price","bid_amount"]
[1765467653380,0.00380021,3166.9,3166.8,4.93247]
[1765467653988,0.00380021,3166.9,3166.4,3.21254001]
[1765467654287,0.00380021,3166.9,3166.8,1.5668]
[1765467655382,0.00380021,3166.9,3166.6,0.15788]
[1765467655778,0.00380021,3166.9,3166.4,3.21254001]
[1765467656085,2.39655261,3166.9,3166.4,3.37043001]
[1765467657984,2.39655261,3166.9,3166.5,0.15788]
[1765467658182,2.39655261,3166.9,3166.6,0.15788]
[1765467659284,0.00380021,3166.9,3166.8,1.5668]
[1765467659487,2.39655261,3166.9,3166.7,0.15787]
[1765467660187,3.2078,3166.8,3166.7,0.15787]
[1765467660395,2.88391796,3166.8,3166.7,0.15788]
[1765467660587,0.00380021,3166.9,3166.8,1.72467]
[1765467660883,0.00380021,3166.9,3166.8,0.15787]
[1765467661075,3.21160021,3166.9,3166.4,0.00474001]
[1765467661279,0.00380021,3166.9,3166.8,10.24977]
[1765467661485,0.00380021,3166.9,3166.8,7.60277]
[1765467661677,0.00474001,3167.0,3166.9,5.47517]
[1765467661877,1.36593501,3168.1,3167.5,1.72463]
[1765467662079,3.2078,3168.7,3167.8,3.2078]
[1765467662285,3.2078,3168.7,3168.1,0.1578]
[1765467662481,3.2078,3168.7,3168.2,1.5668]
[1765467662686,3.21023469,3168.7,3168.2,1.56928228]
[1765467662891,2.3927524,3168.4,3168.2,0.00248228]
[1765467663386,3.2078,3168.3,3168.2,0.00248228]
[1765467663686,2.3927524,3168.4,3168.2,1.56928228]
[1765467663885,3.21023469,3168.7,3168.2,1.56928228]
[1765467664584,2.3927524,3168.4,3168.2,0.00248228]
[1765467665684,3.21023469,3168.7,3168.2,1.56928228]
[1765467666089,3.21023469,3168.7,3168.2,1.72708228]
[1765467666397,2.3927524,3168.4,3168.2,0.00248228]
[1765467666592,3.21023469,3168.7,3168.2,0.00248228]
[1765467666894,3.21023469,3168.7,3168.2,1.56928228]
[1765467667493,3.21023469,3168.7,3168.2,0.00248228]
[1765467667793,5.6005524,3168.3,3168.1,0.00474001]
[1765467668603,5.6005524,3168.3,3168.1,0.00792745]
[1765467668783,5.4535,3168.2,3168.1,0.00792745]
[1765467669994,5.4535,3167.6,3167.5,3.2078]
[1765467670593,5.4535,3167.6,3167.0,0.15786]
[1765467670594,5.4535,3167.6,3167.1,3.2078]
[1765467671093,5.4535,3167.2,3167.1,3.21138063]
[1765467671493,2.3927524,3167.3,3167.1,3.21138063]
[1765467671691,5.4535,3167.2,3167.1,0.00358063]
[1765467673487,2.3927524,3167.7,3167.1,3.21138063]
[1765467673687,2.3927524,3167.7,3167.1,0.00358063]
[1765467673887,4.8085,3167.2,3167.1,0.00358063]
[1765467674088,2.4387,3167.2,3167.1,0.00358063]
[1765467674492,2.3927524,3167.4,3167.1,0.00358063]
[1765467674698,2.3927524,3167.6,3167.1,0.00358063]
[1765467675393,2.4387,3167.2,3167.1,0.00358063]
[1765467675595,4.8085,3167.2,3167.1,0.00358063]
[1765467675988,7.2012524,3167.2,3167.1,0.00358063]
[1765467676184,4.8085,3167.1,3167.0,0.00474001]
[1765467676398,4.8085,3166.8,3166.7,3.2078]
[1765467676693,7.2012524,3166.8,3166.7,3.2078]
[1765467676892,4.8085,3166.8,3166.7,3.2078]
[1765467677089,2.3927524,3166.9,3166.7,3.2078]
[1765467677294,2.4387,3166.8,3166.7,3.21160148]
[1765467677488,0.00474001,3167.1,3166.7,5.68830148]
[1765467677891,2.4387,3166.8,3166.7,3.21160148]
[1765467678091,7.2012524,3166.8,3166.7,3.21160148]
[1765467678489,4.8085,3166.4,3166.3,3.2078]
[1765467678690,2.4387,3166.4,3166.3,3.2078]
[1765467679089,4.8314524,3166.4,3166.3,3.2078]
[1765467679290,2.6671,3165.9,3165.6,2.7980015]
[1765467679497,5.2833,3165.7,3165.6,0.0035143]
[1765467680692,5.60278331,3165.9,3165.6,0.0035143]
[1765467680998,3.21003091,3165.9,3165.8,5.2757]
[1765467681198,0.00223091,3165.9,3165.8,5.43362]
[1765467681395,3.2078,3166.7,3166.6,5.43358]
[1765467682100,0.00474001,3167.1,3166.6,5.43358]
[1765467682290,0.1578,3168.3,3166.6,5.43358]
[1765467682291,3.2078,3167.3,3167.2,5.2757]
[1765467682495,0.00307401,3167.3,3167.2,8.64135]
[1765467682697,3.2078,3168.2,3167.7,2.6363]
[1765467682892,3.2078,3168.2,3168.1,5.2757]
[1765467683093,3.2078,3168.2,3167.9,0.15781]
[1765467683495,3.2078,3168.2,3167.8,3.2078]
[1765467683789,2.3927524,3167.9,3167.8,0.00347052]
[1765467683989,2.3927524,3167.9,3167.5,3.2078]
[1765467684300,3.2078,3167.7,3166.9,3.2078]
[1765467684500,2.3927524,3167.9,3167.3,3.2078]
[1765467685199,4.72759013,3168.2,3167.3,3.21581377]
[1765467685200,3.21109013,3168.2,3167.3,3.21581377]
[1765467685394,4.72759013,3168.2,3167.3,3.21581377]
[1765467685600,2.3927524,3167.9,3167.6,0.15783]
[1765467686498,0.00329013,3168.2,3168.1,2.6363]
[1765467686703,0.00329013,3168.2,3168.1,8.64131]
[1765467687205,0.00329013,3168.2,3168.1,3.36561]
[1765467687596,6.52874253,3168.2,3168.1,3.2078]
[1765467687797,6.52874253,3168.2,3167.5,3.36564]
[1765467687997,4.13599013,3168.2,3167.5,3.2078]
[1765467688196,4.13599013,3168.2,3167.9,3.36561]
[1765467688197,0.00329013,3168.2,3167.9,3.36561]
[1765467688396,0.00329013,3168.2,3168.1,0.15781]
[1765467688593,0.00329013,3168.2,3168.1,2.79411]
[1765467689094,0.00329013,3168.2,3168.1,5.43351]
[1765467689696,3.2078,3169.7,3168.9,1.629]
[1765467689898,4.7243,3170.3,3169.6,0.15773]
[1765467690092,3.2078,3169.9,3169.1,3.2078]
[1765467690297,5.6005524,3169.9,3169.1,3.2078]
[1765467690496,5.6005524,3169.5,3168.7,3.2078]
[1765467690703,2.3927524,3169.1,3168.8,0.00473246]
[1765467690898,5.6005524,3169.1,3168.8,0.00473246]
[1765467691407,0.00473246,3169.4,3168.8,0.00473246]
[1765467692005,0.00473246,3169.4,3168.9,1.629]
[1765467692302,0.00473246,3169.4,3169.1,3.2078]
[1765467694407,0.00473246,3169.4,3169.3,0.15775]
[1765467694610,3.246e-05,3169.4,3169.3,0.15775]
[1765467694813,0.00242138,3169.5,3169.4,0.15774]
[1765467695501,3.2078,3170.3,3169.6,1.629]
[1765467695704,3.21253246,3170.3,3169.9,3.2078]
[1765467696202,3.21253246,3170.3,3169.6,1.78673]
[1765467696203,4.72903246,3170.3,3169.6,0.15773]
[1765467696402,4.72903246,3170.3,3169.5,3.2078]
[1765467696718,4.73155773,3170.3,3169.5,3.2078]
[1765467697204,3.21505773,3170.3,3169.6,1.629]
[1765467697912,3.21505773,3170.3,3169.9,3.2078]
[1765467698507,0.00725773,3170.3,3169.9,3.2078]
[1765467699213,0.00725773,3170.3,3169.6,1.78673]
[1765467699400,1.52375773,3170.3,3169.6,0.15773]
[1765467699907,0.00725773,3170.3,3169.6,1.78673]
[1765467700108,0.00725773,3170.3,3170.0,3.2078]
[1765467701414,2.6671,3170.1,3170.0,3.2078]
[1765467701903,0.00725773,3170.3,3170.0,5.8441]
[1765467702101,0.00725773,3170.3,3170.2,5.2757]
[1765467702299,0.00725773,3170.3,3170.2,2.6363]
[1765467702501,2.67435773,3170.3,3169.6,4.8368]
[1765467703301,3.2078,3170.0,3169.6,3.2078]
[1765467704608,2.40001013,3170.3,3169.6,3.2078]
[1765467704912,0.00725773,3170.3,3169.6,3.2078]
[1765467705113,0.00725773,3170.3,3169.6,3.36553]
[1765467706915,0.00725773,3170.3,3170.2,5.2757]
[1765467707709,0.15766,3171.2,3170.7,5.2757]
[1765467707710,3.2078,3171.2,3170.7,5.2757]
[1765467708608,3.21013688,3171.2,3171.1,2.6363]
[1765467708810,3.21013688,3171.2,3171.1,5.20421305]
[1765467710110,3.688e-05,3171.2,3171.1,8.56967305]
[1765467710310,3.2078,3171.7,3171.1,8.56967305]
[1765467710311,3.2078,3171.7,3171.6,6.515]
[1765467710505,3.2078,3172.1,3172.0,5.0988]
[1765467711407,3.21061766,3172.1,3171.6,1.4162]
[1765467711612,5.0232,3171.6,3171.1,0.16097305]
[1765467711821,5.0232,3171.2,3171.1,0.00331305]
[1765467712219,3.9094524,3171.6,3171.1,0.00331305]
[1765467712712,1.5167,3171.6,3171.1,0.00331305]
[1765467712907,3.2078,3171.7,3171.1,0.00331305]
[1765467713620,2.3927524,3171.4,3171.1,0.00331305]
[1765467713815,3.2078,3171.3,3170.6,0.00473246]
[1765467714018,3.9094524,3171.0,3170.6,0.00473246]
[1765467714217,3.2078,3170.9,3170.6,0.00473246]
[1765467714814,3.2078,3170.9,3170.6,0.00847022]
[1765467716914,3.2078,3171.4,3170.6,0.00847022]
[1765467717120,3.2078,3171.0,3170.6,0.00847022]
[1765467717417,4.1222355,3171.7,3170.6,0.00847022]
[1765467717418,3.2078,3171.4,3170.6,0.00847022]
[1765467718325,0.00281766,3172.1,3171.3,3.2078]
[1765467718821,0.00281766,3172.1,3171.0,1.4162]
[1765467718822,0.00281766,3172.1,3172.0,5.0988]
[1765467719017,0.00281766,3172.1,3172.0,5.25641]
[1765467720024,0.00281766,3172.1,3172.0,5.0988]
[1765467720322,0.00281766,3172.1,3172.0,2.5342]
[1765467720521,0.00281766,3172.1,3171.7,4.624]
[1765467720718,0.00281766,3172.1,3171.7,3.2078]
[1765467720921,5.0232,3171.8,3171.4,0.15764]
[1765467721123,0.00281766,3172.1,3172.0,5.0988]
[1765467721326,0.00281766,3172.1,3172.0,8.3066]
[1765467721925,0.00473246,3172.4,3172.3,5.0988]
[1765467722123,0.00473246,3172.4,3172.3,5.2564]
[1765467722424,11.6588,3173.4,3172.4,1.4162]
[1765467722625,11.6588,3173.4,3172.8,3.2078]
[1765467723024,11.66158881,3173.4,3172.8,3.2078]
[1765467723223,3.21366244,3173.4,3172.8,3.21253246]
[1765467723425,0.00586244,3173.4,3173.1,1.4162]
[1765467723628,3.2078,3174.2,3173.1,1.4162]
[1765467723629,3.2078,3174.2,3173.5,0.15753]
[1765467723826,3.2078,3174.2,3173.8,3.2078]
[1765467724027,3.2078,3174.7,3173.8,3.2078]
[1765467724326,0.15745,3175.3,3173.8,3.2078]
[1765467724327,3.2078,3175.1,3174.2,3.3653]
[1765467724520,3.21155876,3175.1,3174.2,3.3653]
[1765467725121,3.21155876,3175.1,3174.2,3.2078]
[1765467725627,3.21155876,3175.1,3174.3,3.2078]
[1765467727137,3.21155876,3175.1,3173.8,1.4162]
[1765467727138,3.2078,3174.7,3173.8,1.4162]
[1765467727542,3.21155876,3175.1,3174.1,3.36531]
[1765467727741,3.21155876,3175.1,3174.3,0.15749]
[1765467727938,2.6576355,3174.9,3174.0,0.15751]
[1765467728132,3.21155876,3175.1,3173.1,1.41973984]
[1765467728133,3.2078,3174.3,3173.5,3.2078]
[1765467728340,1.5167,3173.8,3173.1,0.00353984]
[1765467728542,1.5167,3173.8,3173.1,3.21133984]
[1765467728737,3.2078,3173.5,3173.1,0.00353984]
[1765467729038,3.2078,3173.5,3173.1,3.21133984]
[1765467729341,3.2078,3173.5,3173.1,0.00353984]
[1765467731140,3.2078,3173.9,3173.1,3.21133984]
[1765467731344,1.443,3173.8,3173.1,3.21133984]
[1765467731542,3.2078,3173.5,3173.1,0.00353984]
[1765467731738,1.443,3173.8,3173.1,3.21133984]
[1765467732534,3.2078,3173.9,3173.1,4.62753984]
[1765467733047,3.2078,3173.9,3173.5,3.2078]
[1765467733640,4.7245,3174.5,3173.5,3.2078]
[1765467733841,3.2078,3174.5,3173.9,3.2078]
[1765467734340,0.00375876,3175.1,3174.3,3.2078]
[1765467734546,3.2078,3175.0,3173.9,3.2078]
[1765467735141,3.2078,3174.5,3173.9,3.2078]
[1765467735342,4.6276,3174.5,3173.9,3.2078]
[1765467735634,3.2078,3174.5,3173.9,3.2078]
[1765467735839,3.2078,3175.0,3173.9,3.2078]
[1765467736238,3.2078,3175.0,3174.1,0.15751]
[1765467738440,3.2078,3175.0,3173.9,3.2078]
[1765467738640,4.508,3174.5,3173.9,3.2078]
[1765467739847,2.2468,3174.0,3173.9,3.2078]
[1765467740143,3.2078,3174.5,3173.9,3.2078]
[1765467741246,3.2078,3174.5,3174.4,4.3282]
[1765467741448,3.2078,3174.9,3174.0,0.15751]
[1765467741648,3.2078,3174.5,3173.9,3.2078]
[1765467742240,3.2078,3174.9,3173.9,3.2078]
[1765467742648,5.8654355,3174.9,3173.9,3.2078]
[1765467743151,4.5132,3174.5,3173.5,3.2078]
[1765467743641,3.2078,3174.5,3173.9,3.2078]
[1765467743842,4.5892,3174.0,3173.9,3.2078]
[1765467744043,3.2078,3174.0,3173.1,1.41713984]
[1765467744250,2.2468,3173.5,3173.4,3.2078]
[1765467744552,4.5892,3173.5,3173.4,3.2078]
[1765467744948,3.2078,3173.6,3173.1,0.00353984]
[1765467745244,3.2078,3173.2,3172.8,0.00473246]
[1765467745448,3.2078,3173.2,3171.7,1.4162]
[1765467745449,2.6576355,3172.9,3172.0,3.2078]
[1765467745643,4.0255355,3172.4,3172.0,3.2078]
[1765467746251,4.02859749,3172.4,3172.0,3.21059609]
[1765467746453,4.02859749,3172.4,3172.0,0.00279609]
[1765467746653,3.2078,3172.2,3172.0,0.00279609]
[1765467748446,0.00306199,3172.4,3172.0,0.00279609]
[1765467749354,1.37096199,3172.4,3172.0,0.00279609]
[1765467749547,4.02859749,3172.4,3172.0,0.00279609]
[1765467751546,1.37096199,3172.4,3172.0,0.00279609]
[1765467751754,0.00306199,3172.4,3172.0,0.00279609]
[1765467752656,1.21076199,3172.4,3172.0,0.00279609]
[1765467752856,3.86839749,3172.4,3172.0,0.00279609]
[1765467753760,4.5892,3172.1,3172.0,0.00279609]
[1765467754564,4.5892,3171.5,3171.4,3.2078]
[1765467754764,4.5892,3171.5,3170.9,3.2078]
[1765467755056,2.2468,3171.5,3170.9,3.2078]
[1765467755554,2.2468,3171.5,3170.9,3.21647464]
[1765467755758,2.25152486,3171.5,3170.9,3.21647464]
[1765467756358,0.00472486,3171.5,3171.4,2.179]
[1765467757150,2.25152486,3171.5,3171.3,3.2078]
[1765467757353,2.25152486,3171.5,3171.0,1.3462]
[1765467758564,0.00472486,3171.5,3171.4,4.3282]
[1765467761865,2.25152486,3171.5,3171.3,3.2078]
[1765467762860,4.5892,3171.4,3170.9,3.37413464]
[1765467763961,0.00472486,3171.5,3171.4,4.3282]
[1765467764265,0.00472486,3171.5,3171.4,4.48584]
[1765467764461,2.486e-05,3171.5,3171.4,10.48584]
[1765467764762,3.2078,3172.1,3172.0,4.3282]
[1765467764961,0.00306199,3172.4,3172.3,4.3282]
[1765467766165,4.5892,3172.1,3172.0,3.2078]
[1765467766559,4.5892,3172.1,3171.2,3.36545]
[1765467767458,3.2078,3171.9,3171.2,3.36545]
[1765467767860,3.2078,3171.9,3171.8,4.3282]
[1765467768066,2.2468,3171.9,3171.6,3.2078]
[1765467768259,3.2078,3172.3,3171.6,3.2078]
[1765467768465,0.8633,3172.2,3171.6,3.2078]
[1765467768860,3.2078,3172.3,3171.6,4.4362]
[1765467769061,0.9447,3172.2,3171.6,3.2078]
[1765467769765,2.1141,3171.7,3171.3,0.15765]
[1765467769963,2.1141,3171.4,3171.3,0.15765]
[1765467770166,2.1141,3171.4,3171.2,3.2078]
[1765467771064,5.8654355,3171.9,3171.2,3.2078]
[1765467771065,4.2571,3171.3,3171.2,3.2078]
[1765467773161,4.2571,3171.0,3170.9,0.00867464]
[1765467773363,4.908,3171.0,3170.9,0.00867464]
[1765467773958,2.1141,3171.0,3170.9,0.00867464]
[1765467774161,3.2078,3171.5,3170.9,1.96737464]
[1765467774363,3.2078,3171.5,3171.4,1.9587]
[1765467774559,5.3219,3171.5,3171.0,1.2284]
[1765467775663,2.1141,3171.5,3170.9,0.00867464]
[1765467776068,2.1141,3171.5,3171.0,1.2284]
[1765467776769,3.2078,3171.9,3171.4,3.9692]
[1765467777166,3.2078,3171.9,3170.9,0.00867464]
[1765467777167,4.2571,3171.0,3170.9,0.00867464]
[1765467777365,5.5226,3171.0,3170.9,0.00867464]
[1765467777664,4.2571,3171.0,3170.9,0.00867464]
[1765467777869,3.2078,3171.1,3171.0,5.1976]
[1765467778168,5.593664,3171.7,3171.0,5.1976]
[1765467779172,3.2078,3171.7,3171.2,3.2078]
[1765467779358,3.2078,3171.7,3171.6,1.9587]
[1765467779563,2.1141,3171.7,3171.2,3.2078]
[1765467780860,2.1141,3171.3,3171.2,3.2078]
[1765467781067,4.2571,3171.0,3170.9,0.00867464]
[1765467781265,5.5226,3171.0,3170.9,0.00867464]
[1765467781466,2.1141,3170.4,3170.3,3.2078]
[1765467781763,3.651364,3171.0,3170.3,5.1665]
[1765467782373,3.65608886,3171.0,3170.3,5.17358142]
[1765467782576,0.00472486,3171.0,3170.4,1.2284]
[1765467782778,0.00472486,3171.0,3170.7,3.2078]
[1765467783172,0.00472486,3171.0,3170.9,3.9692]
[1765467783769,0.00472486,3171.0,3170.9,1.9587]
[1765467784174,2.1141,3170.8,3170.7,3.2078]
[1765467784371,2.11882486,3171.0,3170.7,3.2078]
[1765467784775,2.1141,3170.8,3170.7,3.2078]
[1765467785576,0.00472486,3171.0,3170.9,3.9692]
[1765467786983,4.26182486,3171.0,3170.7,3.2078]
[1765467787184,4.2571,3170.8,3170.7,3.2078]
[1765467787376,4.2571,3170.8,3170.3,0.00708142]
[1765467787377,4.2571,3170.4,3170.3,0.00708142]
[1765467787680,2.385864,3170.8,3170.3,1.96578142]
[1765467788877,4.47802486,3171.0,3170.3,1.96578142]
[1765467789187,3.21252486,3171.0,3170.9,3.9692]
[1765467789371,0.00472486,3171.0,3170.9,1.9587]
[1765467789571,0.00472486,3171.0,3170.9,3.9692]
[1765467792284,2.11882486,3171.0,3170.6,3.2078]
[1765467792674,0.00472486,3171.0,3170.9,3.9692]
[1765467793986,0.00472486,3171.0,3170.9,4.12687]
[1765467795476,0.00472486,3171.0,3170.9,6.9248715]
[1765467795678,3.6928,3170.9,3170.8,2.7980015]
[1765467795886,3.6928,3170.9,3170.6,3.2078]
[1765467795887,3.6928,3170.8,3170.6,3.2078]
[1765467796185,1.8006,3170.7,3170.6,5.1104]
[1765467796383,1.8006,3170.7,3170.6,3.2078]
[1765467796781,1.8006,3170.7,3170.3,0.00708142]
[1765467799185,3.5746,3170.4,3170.3,0.00708142]
[1765467799391,4.7366,3170.4,3170.3,0.00708142]
[1765467799890,5.751334,3170.9,3170.4,1.8355]
[1765467800082,5.593664,3170.9,3170.4,1.8355]
[1765467800482,3.2078,3170.9,3170.4,2.8884]
[1765467800991,1.8105,3170.5,3170.4,1.8355]
[1765467801185,5.593664,3170.9,3170.3,3.62738142]
[1765467801679,3.2078,3170.9,3170.3,3.62738142]
[1765467801883,4.7271,3170.4,3170.3,0.00708142]
[1765467802693,3.2078,3170.5,3170.3,1.84258142]
[1765467802999,3.21252486,3171.0,3170.4,4.6732]
[1765467803492,5.02302486,3171.0,3170.9,1.8355]
[1765467803684,7.86822486,3171.0,3170.4,1.0529]
[1765467804085,3.21252486,3171.0,3170.9,3.6203]
[1765467804587,0.00472486,3171.0,3170.9,3.6203]
[1765467806383,8.252,3172.0,3171.9,1.8355]
[1765467806587,1.8105,3172.0,3171.9,1.8355]
[1765467806787,3.2078,3172.3,3171.9,3.6203]
[1765467807288,3.5845,3172.0,3171.5,3.2078]
[1765467807792,1.8105,3171.6,3171.5,3.2078]
[1765467808092,0.00470712,3172.2,3171.6,1.0529]
[1765467808593,3.5845,3171.6,3171.2,2.7980015]
[1765467808894,3.5845,3171.6,3171.1,3.36546]
[1765467809297,3.5845,3171.6,3171.1,3.2078]
[1765467809491,4.7465,3171.6,3171.1,3.2078]
[1765467809995,6.7923,3171.8,3171.1,3.2078]
[1765467810690,3.5845,3171.8,3171.1,3.2078]
[1765467810897,3.5845,3171.2,3171.1,3.2078]
[1765467811194,3.5845,3170.8,3170.7,3.2078]
[1765467812594,3.5845,3170.8,3170.3,3.21488142]
[1765467812988,1.8105,3170.4,3170.3,3.21488142]
[1765467813190,3.5845,3170.4,3170.3,3.21488142]
[1765467813590,1.8105,3170.4,3170.3,3.21488142]
[1765467813789,3.2078,3170.9,3170.3,6.83518142]
[1765467813984,1.8105,3170.4,3170.3,5.05038142]
[1765467814795,3.2078,3170.9,3170.3,5.05038142]
[1765467814995,3.5845,3170.4,3170.3,3.21488142]
[1765467815294,1.8105,3170.4,3170.3,5.05038142]
[1765467815493,4.7465,3170.4,3170.3,3.21488142]
[1765467815795,3.5845,3170.4,3170.3,3.21488142]
[1765467816399,3.2078,3170.9,3170.8,3.6203]
[1765467816595,3.2078,3171.3,3170.8,3.6203]
[1765467817292,3.2078,3171.3,3171.2,1.8355]
[1765467817698,3.2078,3171.3,3171.2,3.6203]
[1765467818298,6.7923,3171.3,3170.7,3.2078]
[1765467818794,6.7923,3171.3,3170.7,6.8281]
[1765467818795,3.2078,3171.3,3170.7,6.8281]
[1765467820192,1.8105,3170.8,3170.7,5.0433]
[1765467820896,3.2078,3171.3,3170.7,5.0433]
[1765467821093,1.8105,3170.5,3170.3,6.01288292]
[1765467821287,2.385864,3171.1,3170.4,3.6203]
[1765467821493,2.385864,3171.1,3170.4,4.6732]
[1765467821689,3.2078,3171.3,3170.7,3.2078]
[1765467822695,3.5845,3170.8,3170.7,3.2078]
[1765467822897,3.5845,3170.8,3170.3,6.01288292]
[1765467823199,3.5845,3170.8,3170.3,3.21488142]
[1765467823998,5.0183,3170.9,3170.8,1.8355]
[1765467824597,1.8105,3170.9,3170.8,1.8355]
[1765467825703,3.2078,3171.3,3171.2,3.6203]
[1765467826000,5.0183,3171.3,3171.2,1.8355]
[1765467827308,3.2078,3171.7,3171.6,3.6203]
[1765467827504,3.2078,3172.1,3172.0,1.8355]
[1765467827804,1.144,3172.0,3171.2,6.8281]
[1765467829202,2.385864,3171.7,3171.2,6.8281]
[1765467829405,1.6829,3170.9,3170.8,4.899]
[1765467829606,3.2078,3171.6,3170.8,6.6722]
[1765467830207,3.4285,3170.9,3170.8,3.2078]
[1765467830704,1.6829,3170.9,3170.8,4.899]
[1765467831909,3.4285,3170.6,3170.5,2.81451013]
[1765467832206,1.6829,3170.4,3170.3,3.21488142]
[1765467832609,2.385864,3170.9,3170.3,6.67928142]
[1765467832909,1.6829,3170.4,3170.3,4.90608142]
[1765467833110,3.4285,3170.4,3170.3,3.21488142]
[1765467833902,1.6829,3170.4,3170.3,4.90608142]
[1765467834206,3.2078,3170.8,3170.3,4.90608142]
[1765467835304,3.4285,3170.4,3170.3,3.21488142]
[1765467835704,3.4285,3170.0,3169.9,3.2078]
[1765467835909,5.814364,3170.0,3169.6,0.08088]
[1765467836207,1.6829,3170.0,3169.9,1.6912]
[1765467836408,3.4285,3170.0,3169.6,0.08088]
[1765467836711,3.43090149,3170.0,3169.6,0.08088]
[1765467837209,1.6829,3169.7,3169.6,0.08088]
[1765467837508,1.6829,3169.7,3169.6,1.77511126]
[1765467837809,3.26876549,3170.0,3169.6,3.54831126]
[1765467838703,0.00240149,3170.0,3169.6,3.54831126]
[1765467839607,1.6829,3169.7,3169.6,1.77511126]
[1765467840006,3.4285,3169.7,3169.6,0.08391126]
[1765467840211,1.0373,3169.5,3169.4,3.08412522]
[1765467840405,1.0373,3169.5,3167.7,0.15782]
[1765467840406,0.15775,3169.4,3168.5,1.0517]
[1765467840613,6.6363,3169.1,3168.5,1.0517]
[1765467840807,6.6363,3169.1,3168.4,6.02231013]
[1765467841006,3.2078,3169.1,3168.4,6.6722]
[1765467841209,3.2078,3169.1,3169.0,3.4644]
[1765467841612,3.2078,3169.5,3169.4,1.6912]
[1765467841915,0.00240149,3170.0,3169.9,1.6912]
[1765467842115,3.43090149,3170.0,3169.2,4.2595]
[1765467842415,3.43090149,3170.0,3169.2,3.2078]
[1765467842606,3.2078,3169.7,3168.8,2.81451013]
[1765467843206,3.2078,3169.7,3169.6,1.6912]
[1765467843412,3.2078,3169.7,3169.6,3.4644]
[1765467844312,0.00240149,3170.0,3169.9,3.4644]
[1765467845905,1.68530149,3170.0,3169.9,1.6912]
[1765467847211,3.43090149,3170.0,3169.5,3.2078]
[1765467847411,3.4285,3169.6,3169.5,3.2078]
[1765467848116,1.6829,3169.6,3169.5,4.899]
[1765467848316,1.6829,3169.6,3169.5,1.6912]
[1765467848819,2.66115122,3170.0,3169.5,3.4644]
[1765467849213,0.00240149,3170.0,3169.5,3.4644]
[1765467849910,0.00240149,3170.0,3169.9,1.6912]
[1765467850110,4.4658,3169.2,3169.1,3.2078]
[1765467850312,1.6829,3168.5,3168.4,1.69593237]
[1765467850614,4.2451,3169.2,3168.4,1.69593237]
[1765467850615,4.2451,3169.2,3168.4,3.46913237]
[1765467852213,3.2078,3168.8,3168.4,1.69593237]
[1765467853216,3.2078,3168.8,3168.4,0.00473237]
[1765467853217,3.2545,3168.5,3168.4,0.00473237]
[1765467853409,3.2545,3168.5,3167.7,3.2078]
[1765467853722,3.62664973,3168.6,3167.7,3.2078]
[1765467853723,6.3933,3168.3,3167.7,3.2078]
[1765467853916,3.2078,3167.9,3167.3,3.2078]
[1765467854323,3.2078,3167.9,3167.0,0.15786]
[1765467854613,0.00473237,3167.8,3167.1,0.00473237]
[1765467855412,0.00473237,3167.8,3167.2,3.2078]
[1765467855613,0.00473237,3167.8,3167.7,1.6797]
[1765467855814,1.61863237,3167.8,3167.1,0.00473237]
[1765467856419,3.1855,3167.2,3167.1,0.00473237]
[1765467856616,3.18806589,3167.2,3167.1,0.00473237]
[1765467856817,1.61646589,3167.2,3167.1,1.68443237]
[1765467857325,3.18806589,3167.2,3167.1,0.00473237]
[1765467857523,1.61646589,3167.2,3167.1,1.68443237]
[1765467857822,0.00256589,3167.2,3167.1,3.30593237]
[1765467858020,1.61646589,3167.2,3167.1,1.68443237]
[1765467858322,5.84681562,3167.2,3167.1,0.00473237]
[1765467858822,4.27521562,3167.2,3167.1,1.68443237]
[1765467859121,0.00256589,3167.2,3167.1,3.27283237]
[1765467859924,0.00473237,3167.8,3167.7,3.1598]
[1765467860222,1.59963237,3167.8,3167.4,0.9475]
[1765467860824,1.59963237,3167.8,3167.1,0.00473237]
[1765467861020,1.6025565,3167.8,3167.1,0.00729826]
[1765467862222,0.0076565,3167.8,3167.7,3.1598]
[1765467864228,3.2078,3169.1,3169.0,1.5714]
[1765467864432,4.8027,3169.1,3169.0,1.5714]
[1765467864731,4.8027,3169.1,3168.6,0.3374]
[1765467864931,4.8027,3169.1,3169.0,1.5714]
[1765467865135,3.2078,3169.1,3169.0,3.1598]
[1765467865318,3.21150911,3169.1,3169.0,3.1598]
[1765467865728,0.00370911,3169.1,3169.0,3.1598]
[1765467866125,9.9118,3170.0,3169.3,3.1598]
[1765467866331,3.2078,3170.0,3169.9,3.1598]
[1765467866530,3.2078,3170.0,3169.8,0.9475]
[1765467866531,0.9368,3171.0,3170.6,1.5714]
[1765467866834,3.2078,3170.9,3170.6,1.5714]
[1765467867237,3.2111282,3170.9,3170.8,3.1598]
[1765467867533,3.2111282,3170.9,3170.6,0.00362267]
[1765467867725,0.0033282,3170.9,3170.8,3.2078]
[1765467867923,3.2058282,3170.9,3170.8,3.2078]
[1765467868127,5.86457793,3170.9,3170.8,3.2078]
[1765467868531,5.86457793,3170.9,3170.6,0.00362267]
[1765467868532,1.5949,3170.7,3170.6,0.00362267]
[1765467868734,3.2025,3170.5,3170.4,0.00473237]
[1765467868930,1.5949,3170.5,3170.4,0.00473237]
[1765467869130,3.2025,3170.5,3170.4,0.00473237]
[1765467869735,3.2025,3170.5,3170.4,0.0077375]
[1765467871038,2.66207793,3170.9,3170.4,0.0077375]
[1765467871635,3.2025,3170.5,3170.4,0.0077375]
[1765467871841,1.5949,3170.5,3170.4,0.0077375]
[1765467872044,0.0033282,3170.9,3170.4,0.0077375]
[1765467872337,0.0033282,3170.9,3170.6,3.2078]
[1765467872541,1.5949,3170.7,3170.6,3.2078]
[1765467872842,3.2025,3170.7,3170.6,3.2078]
[1765467873142,0.0033282,3170.9,3170.6,3.2078]
[1765467874039,0.0033282,3170.9,3170.8,1.5714]
[1765467874239,1.5949,3170.7,3170.6,3.2078]
[1765467874840,0.0033282,3170.9,3170.6,4.7792]
[1765467875143,0.0033282,3170.9,3170.8,3.1598]
[1765467875945,0.0033282,3170.9,3170.6,3.2078]
[1765467876947,0.0033282,3170.9,3170.8,3.1598]